[Event "GER-chW Blitz 2019"]
[Site "Magdeburg"]
[Date "2019.05.25"]
[Round "21.8"]
[White "Gheng, Simona"]
[Black "Hofmann, Karina"]
[Result "1/2-1/2"]
[ECO "B00"]
[WhiteElo "1991"]
[BlackElo "1700"]
[Annotator "NA"]
[PlyCount "134"]
[EventDate "2019.05.25"]
[EventType "tourn"]
[EventCountry "GER"]
[SourceTitle "playchess.com"]
[Source "ChessBase"]
[SourceQuality "1"]
[TimeControl "180+2"]

1. e4 {[%emt 0:00:00]} b6 {[%emt 0:00:00]} 2. d4 {[%emt 0:00:02]} Bb7 {[%emt 0:00:00]} 3. Nd2 {[%emt 0:00:08]} g6 {[%emt 0:00:01]} 4. Ngf3 {[%emt 0:00:03]} Bg7 {[%emt 0:00:02]} 5. Bc4 {[%emt 0:00:03]} e6 {[%emt 0:00:01]} 6. O-O {[%emt 0:00:02]} Nf6 {[%emt 0:00:02]} 7. e5 {[%emt 0:00:10]} Nd5 {[%emt 0:00:01]} 8. Ne4 {[%emt 0:00:14]} O-O {[%emt 0:00:04]} 9. Bg5 {[%emt 0:00:07]} Qc8 {[%emt 0:00:05]} 10. Bxd5 {[%emt 0:00:06]} Bxd5 {[%emt 0:00:02]} 11. Nf6+ {[%emt 0:00:03]} Kh8 {[%emt 0:00:14]} 12. Qd3 {[%emt 0:00:09]} d6 {[%emt 0:00:39]} 13. c4 {[%emt 0:00:16]} Bxf3 {[%emt 0:00:01]} 14. Qxf3 {[%emt 0:00:01]} Nd7 {[%emt 0:00:04]} 15. Qh3 {[%emt 0:00:10]} Bxf6 {[%emt 0:00:17]} 16. Bxf6+ {[%emt 0:00:04]} Nxf6 {[%emt 0:00:12]} 17. exf6 {[%emt 0:00:02]} h5 {[%emt 0:00:07]} 18. Qh4 {[%emt 0:00:04]} e5 {[%emt 0:00:20]} 19. Qg5 {[%emt 0:00:04]} Kh7 {[%emt 0:00:03]} 20. dxe5 {[%emt 0:00:02]} dxe5 {[%emt 0:00:07]} 21. Qxe5 {[%emt 0:00:02]} Re8 {[%emt 0:00:09]} 22. Qc3 {[%emt 0:00:04]} c5 {[%emt 0:00:04]} 23. Rfe1 {[%emt 0:00:06]} Qf5 {[%emt 0:00:05]} 24. h3 {[%emt 0:00:06]} Re6 {[%emt 0:00:09]} 25. Rxe6 {[%emt 0:00:03]} fxe6 {[%emt 0:00:00]} 26. Rd1 {[%emt 0:00:03]} Rf8 {[%emt 0:00:03]} 27. Rd7+ {[%emt 0:00:04]} Kh6 {[%emt 0:00:01]} 28. h4 {[%emt 0:00:21]} Rxf6 {[%emt 0:00:06]} 29. Qe3+ {[%emt 0:00:16]} Qf4 {[%emt 0:00:02]} 30. Rxa7 {[%emt 0:00:11]} e5 {[%emt 0:00:08]} 31. Qxf4+ {[%emt 0:00:04]} Rxf4 {[%emt 0:00:01]} 32. b3 {[%emt 0:00:07]} Rxh4 {[%emt 0:00:01]} 33. Rb7 {[%emt 0:00:02]} Rd4 {[%emt 0:00:10]} 34. a4 {[%emt 0:00:05]} Rd6 {[%emt 0:00:04]} 35. Re7 {[%emt 0:00:02]} Rd3 {[%emt 0:00:06]} 36. Rxe5 {[%emt 0:00:05]} Rxb3 {[%emt 0:00:01]} 37. Re6 {[%emt 0:00:01]} Rb4 {[%emt 0:00:01]} 38. Kf1 {[%emt 0:00:16]} Rxc4 {[%emt 0:00:04]} 39. Rxb6 {[%emt 0:00:01]} Rxa4 {[%emt 0:00:01]} 40. Rc6 {[%emt 0:00:00]} Rc4 {[%emt 0:00:01]} 41. Ke2 {[%emt 0:00:01]} Rc2+ {[%emt 0:00:02]} 42. Ke3 {[%emt 0:00:01]} h4 {[%emt 0:00:02]} 43. g3 {[%emt 0:00:00]} hxg3 {[%emt 0:00:01]} 44. fxg3 {[%emt 0:00:01]} Kg5 {[%emt 0:00:02]} 45. Kd3 {[%emt 0:00:00]} Rc1 {[%emt 0:00:05]} 46. Kd2 {[%emt 0:00:01]} Rc4 {[%emt 0:00:01]} 47. Kd3 {[%emt 0:00:01]} Rg4 {[%emt 0:00:01]} 48. Rxc5+ {[%emt 0:00:01]} Kh6 {[%emt 0:00:02]} 49. Ke2 {[%emt 0:00:02]} Rxg3 {[%emt 0:00:02]} 50. Kf2 {[%emt 0:00:01]} Rd3 {[%emt 0:00:01]} 51. Kg2 {[%emt 0:00:01]} g5 {[%emt 0:00:01]} 52. Rc8 {[%emt 0:00:01]} Kh5 {[%emt 0:00:01]} 53. Rc4 {[%emt 0:00:02]} g4 {[%emt 0:00:03]} 54. Rc8 {[%emt 0:00:01]} Kh4 {[%emt 0:00:02]} 55. Rh8+ {[%emt 0:00:01]} Kg5 {[%emt 0:00:01]} 56. Rg8+ {[%emt 0:00:01]} Kf4 {[%emt 0:00:01]} 57. Rf8+ {[%emt 0:00:00]} Kg5 {[%emt 0:00:02]} 58. Rg8+ {[%emt 0:00:01]} Kh5 {[%emt 0:00:02]} 59. Rh8+ {[%emt 0:00:01]} Kg6 {[%emt 0:00:02]} 60. Rg8+ {[%emt 0:00:01]} Kf5 {[%emt 0:00:00]} 61. Rf8+ {[%emt 0:00:01]} Ke4 {[%emt 0:00:01]} 62. Rg8 {[%emt 0:00:03]} Rd2+ {[%emt 0:00:01]} 63. Kg3 {[%emt 0:00:00]} Rd3+ {[%emt 0:00:01]} 64. Kxg4 {[%emt 0:00:01]} Rd4 {[%emt 0:00:01]} 65. Re8+ {[%emt 0:00:03]} Kd3+ {[%emt 0:00:01]} 66. Kf3 {[%emt 0:00:01]} Kc4 {[%emt 0:00:00]} 67. Ke3 {[%emt 0:00:01]} Rd5 {[%emt 0:00:01]} 1/2-1/2

[Event "GER-chW Blitz 2019"]
[Site "Magdeburg"]
[Date "2019.05.25"]
[Round "21.9"]
[White "Kunze, Kerstin"]
[Black "Siegl, Melina"]
[Result "0-1"]
[ECO "B40"]
[WhiteElo "2066"]
[BlackElo "2029"]
[Annotator "NA"]
[PlyCount "98"]
[EventDate "2019.05.25"]
[EventType "tourn"]
[EventCountry "GER"]
[SourceTitle "playchess.com"]
[Source "ChessBase"]
[SourceQuality "1"]
[TimeControl "180+2"]

1. e4 {[%emt 0:00:00]} c5 {[%emt 0:00:00]} 2. Nf3 {[%emt 0:00:02]} e6 {[%emt 0:00:00]} 3. d4 {[%emt 0:00:04]} cxd4 {[%emt 0:00:01]} 4. Nxd4 {[%emt 0:00:01]} Nf6 {[%emt 0:00:01]} 5. Nd2 {[%emt 0:00:11]} d6 {[%emt 0:00:04]} 6. Be2 {[%emt 0:00:10]} a6 {[%emt 0:00:02]} 7. O-O {[%emt 0:00:02]} Nbd7 {[%emt 0:00:05]} 8. c3 {[%emt 0:00:12]} Qc7 {[%emt 0:00:05]} 9. Kh1 {[%emt 0:00:10]} b5 {[%emt 0:00:07]} 10. f4 {[%emt 0:00:18]} Bb7 {[%emt 0:00:02]} 11. Bf3 {[%emt 0:00:02]} Be7 {[%emt 0:00:16]} 12. f5 {[%emt 0:00:24]} e5 {[%emt 0:00:05]} 13. Ne2 {[%emt 0:00:12]} Nc5 {[%emt 0:00:02]} 14. Ng3 {[%emt 0:00:01]} Nd3 {[%emt 0:00:07]} 15. Nb3 {[%emt 0:00:14]} Nxc1 {[%emt 0:00:03]} 16. Rxc1 {[%emt 0:00:08]} Rd8 {[%emt 0:00:02]} 17. Qe2 {[%emt 0:00:06]} O-O {[%emt 0:00:05]} 18. c4 {[%emt 0:00:10]} b4 {[%emt 0:00:09]} 19. Rc2 {[%emt 0:00:19]} a5 {[%emt 0:00:02]} 20. Rfc1 {[%emt 0:00:01]} Nd7 {[%emt 0:00:09]} 21. Nh5 {[%emt 0:00:08]} Bg5 {[%emt 0:00:04]} 22. Rd1 {[%emt 0:00:03]} a4 {[%emt 0:00:13]} 23. Nc1 {[%emt 0:00:02]} Nc5 {[%emt 0:00:03]} 24. b3 {[%emt 0:00:04]} g6 {[%emt 0:00:39]} 25. Ng3 {[%emt 0:00:09]} Qe7 {[%emt 0:00:10]} 26. Rb2 {[%emt 0:00:15]} a3 {[%emt 0:00:02]} 27. Rc2 {[%emt 0:00:02]} Bf4 {[%emt 0:00:04]} 28. Nd3 {[%emt 0:00:01]} Bxg3 {[%emt 0:00:11]} 29. hxg3 {[%emt 0:00:01]} Qg5 {[%emt 0:00:02]} 30. Bg4 {[%emt 0:00:10]} h5 {[%emt 0:00:03]} 31. Bh3 {[%emt 0:00:01]} Qxg3 {[%emt 0:00:10]} 32. Nxc5 {[%emt 0:00:07]} dxc5 {[%emt 0:00:02]} 33. Rcd2 {[%emt 0:00:05]} Rd4 {[%emt 0:00:06]} 34. Rxd4 {[%emt 0:00:02]} exd4 {[%emt 0:00:02]} 35. Rd3 {[%emt 0:00:01]} Qf4 {[%emt 0:00:03]} 36. e5 {[%emt 0:00:05]} Re8 {[%emt 0:00:04]} 37. e6 {[%emt 0:00:01]} fxe6 {[%emt 0:00:10]} 38. fxe6 {[%emt 0:00:04]} Kg7 {[%emt 0:00:07]} 39. Rd1 {[%emt 0:00:03]} Be4 {[%emt 0:00:12]} 40. Rf1 {[%emt 0:00:01]} Qe5 {[%emt 0:00:03]} 41. Rf7+ {[%emt 0:00:04]} Kh6 {[%emt 0:00:08]} 42. Qd2+ {[%emt 0:00:01]} g5 {[%emt 0:00:02]} 43. Qf2 {[%emt 0:00:02]} g4 {[%emt 0:00:12]} 44. Rf6+ {[%emt 0:00:01]} Kg7 {[%emt 0:00:01]} 45. Rf7+ {[%emt 0:00:01]} Kg8 {[%emt 0:00:01]} 46. Rd7 {[%emt 0:00:02]} Qxe6 {[%emt 0:00:03]} 47. Rc7 {[%emt 0:00:05]} gxh3 {[%emt 0:00:02]} 48. Kh2 {[%emt 0:00:01]} Qe5+ {[%emt 0:00:01]} 49. Kh1 {[%emt 0:00:01]} Qxc7 {[%emt 0:00:01]} 0-1

[Event "GER-chW Blitz 2019"]
[Site "Magdeburg"]
[Date "2019.05.25"]
[Round "21.10"]
[White "Kreismann, Franziska"]
[Black "Muetsch, Annmarie"]
[Result "0-1"]
[ECO "E61"]
[WhiteElo "1589"]
[BlackElo "2266"]
[Annotator "NA"]
[PlyCount "54"]
[EventDate "2019.05.25"]
[EventType "tourn"]
[EventCountry "GER"]
[SourceTitle "playchess.com"]
[Source "ChessBase"]
[SourceQuality "1"]
[TimeControl "180+2"]

1. d4 {[%emt 0:00:00]} Nf6 {[%emt 0:00:00]} 2. c4 {[%emt 0:00:00]} g6 {[%emt 0:00:00]} 3. Nc3 {[%emt 0:00:01]} Bg7 {[%emt 0:00:00]} 4. Nf3 {[%emt 0:00:01]} O-O {[%emt 0:00:02]} 5. e3 {[%emt 0:00:01]} d6 {[%emt 0:00:01]} 6. Bd3 {[%emt 0:00:01]} Nbd7 {[%emt 0:00:02]} 7. O-O {[%emt 0:00:03]} c5 {[%emt 0:00:03]} 8. d5 {[%emt 0:00:02]} a6 {[%emt 0:00:11]} 9. b3 {[%emt 0:00:04]} Ne8 {[%emt 0:00:05]} 10. Bb2 {[%emt 0:00:02]} Nc7 {[%emt 0:00:02]} 11. Qc2 {[%emt 0:00:03]} Rb8 {[%emt 0:00:02]} 12. Rab1 {[%emt 0:00:02]} b5 {[%emt 0:00:04]} 13. Ne4 {[%emt 0:00:09]} h6 {[%emt 0:00:26]} 14. Bxg7 {[%emt 0:00:06]} Kxg7 {[%emt 0:00:01]} 15. Ng3 {[%emt 0:00:20]} Nf6 {[%emt 0:00:07]} 16. Rfe1 {[%emt 0:00:04]} e6 {[%emt 0:00:04]} 17. Re2 {[%emt 0:00:19]} exd5 {[%emt 0:00:04]} 18. cxd5 {[%emt 0:00:03]} Ncxd5 {[%emt 0:00:04]} 19. Rbe1 {[%emt 0:00:02]} Nb4 {[%emt 0:00:02]} 20. Qb1 {[%emt 0:00:02]} Nxd3 {[%emt 0:00:07]} 21. Qxd3 {[%emt 0:00:01]} d5 {[%emt 0:00:09]} 22. Ne5 {[%emt 0:00:11]} Qd6 {[%emt 0:00:09]} 23. f4 {[%emt 0:00:04]} Bb7 {[%emt 0:00:20]} 24. h4 {[%emt 0:00:02]} Rbd8 {[%emt 0:00:08]} 25. h5 {[%emt 0:00:03]} Ne4 {[%emt 0:00:04]} 26. Nxe4 {[%emt 0:00:27]} dxe4 {[%emt 0:00:02]} 27. Qxd6 {[%emt 0:00:03]} Rxd6 {[%emt 0:00:00]} 0-1

[Event "GER-chW Blitz 2019"]
[Site "Magdeburg"]
[Date "2019.05.25"]
[Round "21.11"]
[White "Daemering, Katrin"]
[Black "Michna, Marta"]
[Result "0-1"]
[ECO "A05"]
[WhiteElo "2003"]
[BlackElo "2355"]
[Annotator "NA"]
[PlyCount "60"]
[EventDate "2019.05.25"]
[EventType "tourn"]
[EventCountry "GER"]
[SourceTitle "playchess.com"]
[Source "ChessBase"]
[SourceQuality "1"]
[TimeControl "180+2"]

1. Nf3 {[%emt 0:00:00]} Nf6 {[%emt 0:00:00]} 2. g3 {[%emt 0:00:01]} g6 {[%emt 0:00:02]} 3. Bg2 Bg7 4. d3 {[%emt 0:00:02]} d6 {[%emt 0:00:01]} 5. c4 {[%emt 0:00:01]} O-O {[%emt 0:00:01]} 6. Nc3 {[%emt 0:00:02]} e5 {[%emt 0:00:01]} 7. O-O {[%emt 0:00:01]} c6 {[%emt 0:00:05]} 8. Rb1 {[%emt 0:00:02]} h6 {[%emt 0:00:10]} 9. Bd2 {[%emt 0:00:03]} Be6 {[%emt 0:00:02]} 10. b4 {[%emt 0:00:06]} Nbd7 {[%emt 0:00:02]} 11. h3 {[%emt 0:00:14]} d5 {[%emt 0:00:08]} 12. c5 {[%emt 0:00:19]} d4 {[%emt 0:00:09]} 13. Ne4 {[%emt 0:00:18]} Nxe4 {[%emt 0:00:05]} 14. dxe4 {[%emt 0:00:01]} Bxa2 {[%emt 0:00:01]} 15. Rb2 {[%emt 0:00:10]} Be6 {[%emt 0:00:02]} 16. Qc1 {[%emt 0:00:25]} Kh7 {[%emt 0:00:02]} 17. e3 {[%emt 0:00:01]} f5 {[%emt 0:00:29]} 18. exf5 {[%emt 0:00:14]} Bxf5 {[%emt 0:00:32]} 19. exd4 {[%emt 0:00:04]} exd4 {[%emt 0:00:00]} 20. Bf4 {[%emt 0:00:16]} Re8 {[%emt 0:00:35]} 21. Rd2 {[%emt 0:00:04]} Nf8 {[%emt 0:00:04]} 22. Bd6 {[%emt 0:00:15]} Ne6 {[%emt 0:00:03]} 23. Re1 {[%emt 0:00:18]} Ng5 {[%emt 0:00:17]} 24. Rxe8 {[%emt 0:00:12]} Qxe8 {[%emt 0:00:01]} 25. Nxd4 {[%emt 0:00:10]} Bxh3 26. Re2 {[%emt 0:00:03]} Qg8 {[%emt 0:00:28]} 27. Re7 {[%emt 0:00:04]} Re8 {[%emt 0:00:02]} 28. Qe3 {[%emt 0:00:08]} Rxe7 {[%emt 0:00:02]} 29. Qxe7 {[%emt 0:00:01]} Bxg2 {[%emt 0:00:02]} 30. Kxg2 {[%emt 0:00:02]} Qd5+ {[%emt 0:00:00]} 0-1

[Event "GER-chW Blitz 2019"]
[Site "Magdeburg"]
[Date "2019.05.25"]
[Round "21.12"]
[White "Sieber, Fiona"]
[Black "Osmanodja, Filiz"]
[Result "0-1"]
[ECO "B90"]
[WhiteElo "2250"]
[BlackElo "2260"]
[Annotator "NA"]
[PlyCount "66"]
[EventDate "2019.05.25"]
[EventType "tourn"]
[EventCountry "GER"]
[SourceTitle "playchess.com"]
[Source "ChessBase"]
[SourceQuality "1"]
[TimeControl "180+2"]

1. e4 {[%emt 0:00:00]} c5 {[%emt 0:00:01]} 2. Nf3 {[%emt 0:00:00]} d6 {[%emt 0:00:01]} 3. d4 {[%emt 0:00:02]} cxd4 {[%emt 0:00:01]} 4. Nxd4 {[%emt 0:00:01]} Nf6 {[%emt 0:00:00]} 5. Nc3 a6 6. Be3 {[%emt 0:00:04]} e5 {[%emt 0:00:01]} 7. Nb3 {[%emt 0:00:02]} Be7 {[%emt 0:00:03]} 8. f3 {[%emt 0:00:04]} O-O {[%emt 0:00:02]} 9. Qd2 {[%emt 0:00:01]} Nc6 {[%emt 0:00:02]} 10. O-O-O {[%emt 0:00:09]} a5 {[%emt 0:00:01]} 11. a4 {[%emt 0:00:02]} Nb4 {[%emt 0:00:02]} 12. g4 {[%emt 0:00:07]} Be6 {[%emt 0:00:03]} 13. g5 {[%emt 0:00:08]} Nh5 {[%emt 0:00:02]} 14. Rg1 {[%emt 0:00:23]} Rc8 {[%emt 0:00:01]} 15. Bb5 {[%emt 0:00:09]} Qc7 {[%emt 0:00:44]} 16. Qf2 {[%emt 0:00:23]} Bxb3 {[%emt 0:00:49]} 17. cxb3 {[%emt 0:00:24]} Na2+ {[%emt 0:00:02]} 18. Kd2 {[%emt 0:00:34]} Nxc3 {[%emt 0:00:02]} 19. Rc1 {[%emt 0:00:13]} d5 {[%emt 0:01:02]} 20. bxc3 {[%emt 0:00:10]} d4 {[%emt 0:00:14]} 21. cxd4 {[%emt 0:00:10]} Bb4+ {[%emt 0:00:01]} 22. Kd3 {[%emt 0:00:13]} Qd6 {[%emt 0:00:08]} 23. d5 {[%emt 0:00:01]} Nf4+ {[%emt 0:00:10]} 24. Bxf4 {[%emt 0:00:02]} exf4 {[%emt 0:00:00]} 25. Qd4 {[%emt 0:00:07]} Bc5 {[%emt 0:00:04]} 26. Rxc5 {[%emt 0:00:03]} Rxc5 {[%emt 0:00:02]} 27. Bc4 {[%emt 0:00:03]} Rfc8 {[%emt 0:00:03]} 28. e5 {[%emt 0:00:01]} Qg6+ {[%emt 0:00:02]} 29. Qe4 {[%emt 0:00:02]} Qb6 {[%emt 0:00:05]} 30. d6 {[%emt 0:00:02]} Rxc4 {[%emt 0:00:02]} 31. bxc4 {[%emt 0:00:03]} Qxg1 {[%emt 0:00:02]} 32. d7 {[%emt 0:00:01]} Qd1+ {[%emt 0:00:01]} 33. Kc3 {[%emt 0:00:02]} Qxd7 {[%emt 0:00:02]} 0-1

[Event "GER-chW Blitz 2019"]
[Site "Magdeburg"]
[Date "2019.05.25"]
[Round "22.1"]
[White "Roesler, Hannah Clara Hed"]
[Black "Osmanodja, Filiz"]
[Result "0-1"]
[ECO "B22"]
[WhiteElo "1619"]
[BlackElo "2260"]
[Annotator "NA"]
[PlyCount "127"]
[EventDate "2019.05.25"]
[EventType "tourn"]
[EventCountry "GER"]
[SourceTitle "playchess.com"]
[Source "ChessBase"]
[SourceQuality "1"]
[TimeControl "180+2"]

1. e4 {[%emt 0:00:00]} c5 {[%emt 0:00:00]} 2. c3 {[%emt 0:00:00]} Nf6 {[%emt 0:00:08]} 3. e5 {[%emt 0:00:00]} Nd5 {[%emt 0:00:00]} 4. d4 {[%emt 0:00:01]} cxd4 {[%emt 0:00:02]} 5. Nf3 {[%emt 0:00:01]} e6 {[%emt 0:00:00]} 6. cxd4 {[%emt 0:00:02]} d6 {[%emt 0:00:03]} 7. a3 {[%emt 0:00:12]} Nc6 {[%emt 0:00:05]} 8. Bd3 {[%emt 0:00:09]} Qc7 {[%emt 0:00:07]} 9. exd6 {[%emt 0:00:25]} Bxd6 {[%emt 0:00:01]} 10. O-O {[%emt 0:00:13]} Nf4 {[%emt 0:00:03]} 11. Bc2 {[%emt 0:00:37]} O-O {[%emt 0:00:14]} 12. Nc3 {[%emt 0:00:03]} a6 {[%emt 0:00:22]} 13. Re1 {[%emt 0:00:19]} Rd8 {[%emt 0:00:10]} 14. g3 {[%emt 0:00:19]} Ng6 {[%emt 0:00:07]} 15. Qd3 {[%emt 0:00:12]} Be7 {[%emt 0:00:34]} 16. Bb3 {[%emt 0:00:19]} Bf6 {[%emt 0:00:12]} 17. d5 {[%emt 0:00:13]} Nce5 {[%emt 0:00:17]} 18. Nxe5 {[%emt 0:00:05]} Nxe5 {[%emt 0:00:01]} 19. Qe4 {[%emt 0:00:06]} b5 {[%emt 0:00:30]} 20. dxe6 {[%emt 0:00:03]} Bxe6 {[%emt 0:00:12]} 21. Bxe6 {[%emt 0:00:05]} fxe6 {[%emt 0:00:00]} 22. Bf4 {[%emt 0:00:02]} Qc6 {[%emt 0:00:26]} 23. Bxe5 {[%emt 0:00:14]} Qxe4 {[%emt 0:00:01]} 24. Rxe4 {[%emt 0:00:03]} Bxe5 {[%emt 0:00:04]} 25. Rxe5 {[%emt 0:00:01]} Rd2 {[%emt 0:00:01]} 26. b4 {[%emt 0:00:03]} Rc8 {[%emt 0:00:01]} 27. Ne4 {[%emt 0:00:03]} Rd7 {[%emt 0:00:08]} 28. Nc5 {[%emt 0:00:02]} Rd5 {[%emt 0:00:02]} 29. Rxd5 {[%emt 0:00:02]} exd5 {[%emt 0:00:01]} 30. Rd1 {[%emt 0:00:01]} Rd8 {[%emt 0:00:01]} 31. Rd4 {[%emt 0:00:02]} Rd6 {[%emt 0:00:01]} 32. Nb7 {[%emt 0:00:01]} Rd7 {[%emt 0:00:02]} 33. Na5 {[%emt 0:00:01]} Kf7 {[%emt 0:00:01]} 34. Kg2 {[%emt 0:00:01]} Ke6 {[%emt 0:00:00]} 35. Kf3 {[%emt 0:00:01]} Ke5 {[%emt 0:00:00]} 36. Rd1 {[%emt 0:00:03]} d4 {[%emt 0:00:02]} 37. Nc6+ {[%emt 0:00:02]} Kf6 {[%emt 0:00:05]} 38. Rxd4 {[%emt 0:00:02]} Rc7 {[%emt 0:00:02]} 39. Rd6+ {[%emt 0:00:03]} Kf7 {[%emt 0:00:02]} 40. Ne5+ {[%emt 0:00:02]} Ke7 {[%emt 0:00:01]} 41. Rxa6 {[%emt 0:00:02]} Rc3+ {[%emt 0:00:01]} 42. Ke4 {[%emt 0:00:03]} Rc2 {[%emt 0:00:02]} 43. Nd3 {[%emt 0:00:03]} Re2+ {[%emt 0:00:01]} 44. Kf3 {[%emt 0:00:02]} Rd2 {[%emt 0:00:01]} 45. Nf4 {[%emt 0:00:03]} Rc2 {[%emt 0:00:01]} 46. Ra7+ {[%emt 0:00:01]} Kf6 {[%emt 0:00:01]} 47. Nd5+ {[%emt 0:00:02]} Kg6 {[%emt 0:00:02]} 48. Rb7 {[%emt 0:00:01]} Rd2 {[%emt 0:00:02]} 49. Rxb5 {[%emt 0:00:02]} Rd3+ {[%emt 0:00:01]} 50. Ne3 {[%emt 0:00:03]} Rxa3 {[%emt 0:00:01]} 51. Rb6+ {[%emt 0:00:02]} Kf7 {[%emt 0:00:01]} 52. b5 {[%emt 0:00:01]} Rb3 {[%emt 0:00:01]} 53. Rb7+ {[%emt 0:00:02]} Ke6 {[%emt 0:00:01]} 54. b6 {[%emt 0:00:01]} g5 {[%emt 0:00:02]} 55. Ke4 {[%emt 0:00:05]} h5 {[%emt 0:00:03]} 56. Nc4 {[%emt 0:00:02]} Rb4 {[%emt 0:00:01]} 57. Rc7 {[%emt 0:00:02]} h4 {[%emt 0:00:10]} 58. b7 {[%emt 0:00:02]} hxg3 {[%emt 0:00:03]} 59. hxg3 {[%emt 0:00:01]} g4 {[%emt 0:00:01]} 60. Kf4 {[%emt 0:00:02]} Kd5 {[%emt 0:00:02]} 61. Kxg4 {[%emt 0:00:03]} Ke6 {[%emt 0:00:06]} 62. Rc6+ Kd5 63. Rd6+ Kc5 64. Rd7 0-1

[Event "GER-chW Blitz 2019"]
[Site "Magdeburg"]
[Date "2019.05.25"]
[Round "22.2"]
[White "Michna, Marta"]
[Black "Sieber, Fiona"]
[Result "1-0"]
[ECO "A45"]
[WhiteElo "2355"]
[BlackElo "2250"]
[Annotator "NA"]
[PlyCount "51"]
[EventDate "2019.05.25"]
[EventType "tourn"]
[EventCountry "GER"]
[SourceTitle "playchess.com"]
[Source "ChessBase"]
[SourceQuality "1"]
[TimeControl "180+2"]

1. d4 {[%emt 0:00:00]} Nf6 {[%emt 0:00:00]} 2. c3 {[%emt 0:00:00]} d5 {[%emt 0:00:03]} 3. Bf4 {[%emt 0:00:03]} e6 {[%emt 0:00:03]} 4. e3 {[%emt 0:00:04]} c5 {[%emt 0:00:02]} 5. Nd2 {[%emt 0:00:01]} Be7 {[%emt 0:00:07]} 6. Bd3 {[%emt 0:00:03]} Nc6 {[%emt 0:00:04]} 7. h3 {[%emt 0:00:02]} O-O {[%emt 0:00:07]} 8. Ngf3 {[%emt 0:00:02]} b6 {[%emt 0:00:06]} 9. O-O {[%emt 0:00:03]} Bb7 {[%emt 0:00:12]} 10. Re1 {[%emt 0:00:09]} Bd6 {[%emt 0:00:14]} 11. Ne5 {[%emt 0:00:06]} Qc7 {[%emt 0:00:11]} 12. Ndf3 {[%emt 0:00:26]} Nd7 {[%emt 0:00:14]} 13. Nxd7 {[%emt 0:00:08]} Qxd7 {[%emt 0:00:02]} 14. Bxh7+ {[%emt 0:00:42]} Kxh7 {[%emt 0:00:17]} 15. Ng5+ {[%emt 0:00:01]} Kg6 {[%emt 0:00:23]} 16. Qg4 {[%emt 0:00:01]} f5 {[%emt 0:00:05]} 17. Qg3 {[%emt 0:00:01]} Bxf4 {[%emt 0:00:23]} 18. exf4 {[%emt 0:00:01]} Kf6 {[%emt 0:00:14]} 19. Rxe6+ {[%emt 0:00:27]} Qxe6 {[%emt 0:00:01]} 20. Nxe6 {[%emt 0:00:01]} Kxe6 {[%emt 0:00:01]} 21. Qxg7 {[%emt 0:00:04]} Bc8 {[%emt 0:00:38]} 22. Qxf8 {[%emt 0:00:17]} Bb7 {[%emt 0:00:06]} 23. Re1+ {[%emt 0:00:04]} Kd7 {[%emt 0:00:02]} 24. Qf7+ {[%emt 0:00:06]} Kc8 {[%emt 0:00:04]} 25. Re8+ {[%emt 0:00:01]} Nd8 {[%emt 0:00:02]} 26. Qe7 {[%emt 0:00:02]} 1-0

[Event "GER-chW Blitz 2019"]
[Site "Magdeburg"]
[Date "2019.05.25"]
[Round "22.3"]
[White "Muetsch, Annmarie"]
[Black "Daemering, Katrin"]
[Result "1-0"]
[ECO "B51"]
[WhiteElo "2266"]
[BlackElo "2003"]
[Annotator "NA"]
[PlyCount "144"]
[EventDate "2019.05.25"]
[EventType "tourn"]
[EventCountry "GER"]
[SourceTitle "playchess.com"]
[Source "ChessBase"]
[SourceQuality "1"]
[TimeControl "180+2"]

1. e4 {[%emt 0:00:00]} c5 {[%emt 0:00:00]} 2. Nf3 {[%emt 0:00:00]} d6 {[%emt 0:00:00]} 3. Bb5+ {[%emt 0:00:02]} Nd7 {[%emt 0:00:01]} 4. c3 {[%emt 0:00:01]} Ngf6 {[%emt 0:00:02]} 5. Qe2 {[%emt 0:00:01]} e6 {[%emt 0:00:01]} 6. O-O {[%emt 0:00:03]} Be7 {[%emt 0:00:01]} 7. d4 {[%emt 0:00:04]} cxd4 {[%emt 0:00:02]} 8. cxd4 {[%emt 0:00:01]} O-O {[%emt 0:00:02]} 9. Nc3 {[%emt 0:00:03]} a6 {[%emt 0:00:01]} 10. Ba4 {[%emt 0:00:01]} b5 {[%emt 0:00:04]} 11. Bc2 {[%emt 0:00:03]} Bb7 {[%emt 0:00:11]} 12. a3 {[%emt 0:00:03]} Rc8 {[%emt 0:00:03]} 13. h3 {[%emt 0:00:15]} Nb6 {[%emt 0:00:02]} 14. Bf4 {[%emt 0:00:08]} Nc4 {[%emt 0:00:04]} 15. Bd3 {[%emt 0:00:07]} Re8 {[%emt 0:00:19]} 16. Rac1 {[%emt 0:00:08]} h6 {[%emt 0:00:16]} 17. Rfd1 {[%emt 0:00:04]} Qb6 {[%emt 0:00:17]} 18. Bh2 {[%emt 0:00:07]} Bf8 {[%emt 0:00:16]} 19. e5 {[%emt 0:00:17]} Bxf3 {[%emt 0:00:22]} 20. Qxf3 {[%emt 0:00:13]} dxe5 {[%emt 0:00:02]} 21. dxe5 {[%emt 0:00:05]} Nd7 {[%emt 0:00:02]} 22. Bxc4 {[%emt 0:00:15]} Nxe5 {[%emt 0:00:16]} 23. Bxe5 {[%emt 0:00:04]} Rxc4 {[%emt 0:00:02]} 24. Ne2 {[%emt 0:00:12]} Rec8 {[%emt 0:00:08]} 25. Rxc4 {[%emt 0:00:03]} bxc4 {[%emt 0:00:01]} 26. Bc3 {[%emt 0:00:06]} Qb3 {[%emt 0:00:16]} 27. Re1 {[%emt 0:00:08]} Rd8 {[%emt 0:00:01]} 28. Ng3 {[%emt 0:00:08]} Qb6 {[%emt 0:00:06]} 29. Qg4 {[%emt 0:00:15]} Qc6 {[%emt 0:00:07]} 30. Qe4 {[%emt 0:00:03]} Qc7 {[%emt 0:00:03]} 31. Be5 {[%emt 0:00:04]} Qc5 {[%emt 0:00:03]} 32. Bc3 {[%emt 0:00:06]} Qc7 {[%emt 0:00:06]} 33. Qe5 {[%emt 0:00:04]} Qc6 {[%emt 0:00:02]} 34. Qe2 {[%emt 0:00:11]} Rd3 {[%emt 0:00:03]} 35. Rd1 {[%emt 0:00:03]} Qd7 {[%emt 0:00:05]} 36. Rxd3 {[%emt 0:00:02]} cxd3 {[%emt 0:00:01]} 37. Qd2 {[%emt 0:00:01]} Bc5 {[%emt 0:00:03]} 38. Nf1 {[%emt 0:00:03]} Qd6 {[%emt 0:00:06]} 39. Ne3 {[%emt 0:00:03]} Bb6 {[%emt 0:00:01]} 40. Nc4 {[%emt 0:00:04]} Qc6 {[%emt 0:00:06]} 41. Nxb6 {[%emt 0:00:03]} Qxb6 {[%emt 0:00:01]} 42. Qxd3 {[%emt 0:00:01]} f6 {[%emt 0:00:03]} 43. Qd4 {[%emt 0:00:03]} Qc6 {[%emt 0:00:02]} 44. Qd8+ {[%emt 0:00:08]} Kh7 {[%emt 0:00:01]} 45. Qd3+ {[%emt 0:00:01]} Kg8 {[%emt 0:00:02]} 46. Qg6 {[%emt 0:00:03]} e5 {[%emt 0:00:04]} 47. f3 {[%emt 0:00:05]} Qc5+ {[%emt 0:00:02]} 48. Kh2 {[%emt 0:00:02]} Qe3 {[%emt 0:00:01]} 49. Qg4 {[%emt 0:00:06]} Qb6 {[%emt 0:00:06]} 50. Qc4+ {[%emt 0:00:03]} Kh8 {[%emt 0:00:02]} 51. f4 {[%emt 0:00:02]} exf4 {[%emt 0:00:06]} 52. Qxf4 {[%emt 0:00:02]} Kh7 {[%emt 0:00:04]} 53. Qe4+ {[%emt 0:00:03]} Kh8 {[%emt 0:00:01]} 54. b4 {[%emt 0:00:03]} Qc7+ {[%emt 0:00:01]} 55. Kh1 {[%emt 0:00:11]} Qxc3 {[%emt 0:00:01]} 56. Qa8+ {[%emt 0:00:05]} Kh7 {[%emt 0:00:02]} 57. Qxa6 {[%emt 0:00:02]} Qe1+ {[%emt 0:00:02]} 58. Kh2 {[%emt 0:00:01]} Qe5+ {[%emt 0:00:01]} 59. g3 {[%emt 0:00:04]} Qb2+ {[%emt 0:00:01]} 60. Kg1 {[%emt 0:00:02]} Qc1+ {[%emt 0:00:01]} 61. Kf2 {[%emt 0:00:01]} Qd2+ {[%emt 0:00:01]} 62. Kf3 {[%emt 0:00:01]} Qd1+ {[%emt 0:00:02]} 63. Ke3 {[%emt 0:00:01]} Qg1+ {[%emt 0:00:02]} 64. Kd2 {[%emt 0:00:02]} Qxg3 {[%emt 0:00:03]} 65. Qd3+ {[%emt 0:00:01]} Qxd3+ 66. Kxd3 {[%emt 0:00:01]} f5 {[%emt 0:00:03]} 67. b5 {[%emt 0:00:01]} g5 {[%emt 0:00:01]} 68. Ke3 {[%emt 0:00:03]} f4+ {[%emt 0:00:02]} 69. Kf3 {[%emt 0:00:01]} Kg7 {[%emt 0:00:00]} 70. b6 {[%emt 0:00:01]} Kf7 {[%emt 0:00:01]} 71. b7 {[%emt 0:00:01]} Ke6 {[%emt 0:00:01]} 72. b8=Q {[%emt 0:00:02]} Kd5 {Ke4+ Ke5+} 1-0